[Event "Titled Tuesday Blitz March 01 Early 2022"]
[White "Vusatiuk, Vladimir"]
[Black "Lazavik, Denis"]
[WhiteFideId "14118610"]
[BlackFideId "13515110"]
[WhiteElo "2157"]
[BlackElo "2436"]
[Result "1-0"]
[Round "01"]
[TimeControl "180+1"]
[Date "2022.03.01"]
[WhiteClock "0:00:12"]
[BlackClock "0:00:04"]

1. d4 {[%clk 0:02:56]}  f5 {[%clk 0:02:59]} 2. Nc3 {[%clk 0:02:56]}  Nf6 {[%clk 0:02:56]} 3. Bg5 {[%clk 0:02:57]}  d5 {[%clk 0:02:54]} 4. Bxf6 {[%clk 0:02:57]}  exf6 {[%clk 0:02:53]} 5. e3 {[%clk 0:02:58]}  Be6 {[%clk 0:02:53]} 6. Bd3 {[%clk 0:02:55]}  Qd7 {[%clk 0:02:52]} 7. Qf3 {[%clk 0:02:53]}  Nc6 {[%clk 0:02:36]} 8. a3 {[%clk 0:02:53]}  g6 {[%clk 0:02:34]} 9. Nge2 {[%clk 0:02:53]}  O-O-O {[%clk 0:02:34]} 10. O-O {[%clk 0:02:40]}  h5 {[%clk 0:02:32]} 11. b4 {[%clk 0:02:10]}  g5 {[%clk 0:02:22]} 12. b5 {[%clk 0:01:57]}  g4 {[%clk 0:01:38]} 13. bxc6 {[%clk 0:01:37]}  Qxc6 {[%clk 0:01:39]} 14. Qxf5 {[%clk 0:01:00]}  Bxf5 {[%clk 0:01:37]} 15. Bxf5+ {[%clk 0:01:01]}  Kb8 {[%clk 0:01:37]} 16. Rfb1 {[%clk 0:00:56]}  Bd6 {[%clk 0:01:27]} 17. a4 {[%clk 0:00:56]}  a5 {[%clk 0:01:16]} 18. Rb5 {[%clk 0:00:54]}  Bb4 {[%clk 0:01:13]} 19. Na2 {[%clk 0:00:51]}  Bd6 {[%clk 0:00:53]} 20. Rxa5 {[%clk 0:00:47]}  h4 {[%clk 0:00:52]} 21. Bxg4 {[%clk 0:00:42]}  Qxc2 {[%clk 0:00:50]} 22. Rb5 {[%clk 0:00:27]}  c6 {[%clk 0:00:41]} 23. Rb6 {[%clk 0:00:24]}  Bc7 {[%clk 0:00:32]} 24. Rb4 {[%clk 0:00:24]}  Ba5 {[%clk 0:00:31]} 25. Rbb1 {[%clk 0:00:24]}  h3 {[%clk 0:00:28]} 26. g3 {[%clk 0:00:21]}  Qe4 {[%clk 0:00:28]} 27. Nf4 {[%clk 0:00:21]}  Rdg8 {[%clk 0:00:19]} 28. Bxh3 {[%clk 0:00:18]}  Bc7 {[%clk 0:00:12]} 29. Bg2 {[%clk 0:00:19]}  Qf5 {[%clk 0:00:11]} 30. Ne2 {[%clk 0:00:18]}  Qh5 {[%clk 0:00:11]} 31. Rb2 {[%clk 0:00:16]}  Qxh2+ {[%clk 0:00:10]} 32. Kf1 {[%clk 0:00:17]}  Qh5 {[%clk 0:00:07]} 33. Rab1 {[%clk 0:00:17]}  Kc8 {[%clk 0:00:07]} 34. Rxb7 {[%clk 0:00:15]}  Kd7 {[%clk 0:00:07]} 35. Nf4 {[%clk 0:00:14]}  Qf5 {[%clk 0:00:07]} 36. a5 {[%clk 0:00:12]}  Rh2 {[%clk 0:00:05]} 37. a6 {[%clk 0:00:12]}  Rgh8 {[%clk 0:00:05]} 38. a7 {[%clk 0:00:12]}  Rh1+ {[%clk 0:00:04]} 39. Bxh1 {[%clk 0:00:12]}  Rxh1+ {[%clk 0:00:05]} 40. Kg2 {[%clk 0:00:12]}  Qe4+ {[%clk 0:00:04]} 41. f3 {[%clk 0:00:13]}  Rxb1 {[%clk 0:00:02]} 42. fxe4 {[%clk 0:00:12]}  Rxb7 {[%clk 0:00:03]} 43. a8=Q {[%clk 0:00:13]}  Rb2+ {[%clk 0:00:04]} 44. Kh3 {[%clk 0:00:12]} 1-0


[Site "https://www.chess.com"]

[Event "Titled Tuesday Blitz March 01 Early 2022"]
[White "Wagner, Dennis"]
[Black "Topalov, Aleksandar"]
[WhiteFideId "24650684"]
[BlackFideId "925659"]
[WhiteElo "2355"]
[BlackElo "2098"]
[Result "1-0"]
[Round "01"]
[TimeControl "180+1"]
[Date "2022.03.01"]
[WhiteClock "0:01:02"]
[BlackClock "0:00:18"]

1. e4 {[%clk 0:03:00]}  e6 {[%clk 0:02:59]} 2. d4 {[%clk 0:03:00]}  d5 {[%clk 0:02:59]} 3. Nc3 {[%clk 0:03:00]}  Bb4 {[%clk 0:02:58]} 4. Bd2 {[%clk 0:02:58]}  Nf6 {[%clk 0:02:56]} 5. e5 {[%clk 0:02:54]}  Ng8 {[%clk 0:02:56]} 6. Nce2 {[%clk 0:02:55]}  Bf8 {[%clk 0:02:56]} 7. f4 {[%clk 0:02:55]}  h5 {[%clk 0:02:55]} 8. Nf3 {[%clk 0:02:55]}  g6 {[%clk 0:02:55]} 9. c3 {[%clk 0:02:51]}  Qd7 {[%clk 0:02:55]} 10. a4 {[%clk 0:02:50]}  a5 {[%clk 0:02:54]} 11. Nc1 {[%clk 0:02:48]}  b6 {[%clk 0:02:54]} 12. Bb5 {[%clk 0:02:41]}  c6 {[%clk 0:02:53]} 13. Be2 {[%clk 0:02:42]}  Ba6 {[%clk 0:02:53]} 14. Nd3 {[%clk 0:02:42]}  Nh6 {[%clk 0:02:52]} 15. Be3 {[%clk 0:02:30]}  Nf5 {[%clk 0:02:52]} 16. Bf2 {[%clk 0:02:30]}  Be7 {[%clk 0:02:52]} 17. g3 {[%clk 0:02:29]}  Qc7 {[%clk 0:02:33]} 18. h3 {[%clk 0:02:19]}  c5 {[%clk 0:02:32]} 19. Rc1 {[%clk 0:02:18]}  Bxd3 {[%clk 0:01:57]} 20. Bxd3 {[%clk 0:02:17]}  c4 {[%clk 0:01:58]} 21. Be2 {[%clk 0:02:14]}  Nc6 {[%clk 0:01:55]} 22. b3 {[%clk 0:02:12]}  cxb3 {[%clk 0:01:50]} 23. Qxb3 {[%clk 0:02:13]}  Kf8 {[%clk 0:01:47]} 24. Kd2 {[%clk 0:02:10]}  Rb8 {[%clk 0:01:42]} 25. g4 {[%clk 0:02:08]}  Ng7 {[%clk 0:01:40]} 26. Bd3 {[%clk 0:02:00]}  Na7 {[%clk 0:01:28]} 27. Qb1 {[%clk 0:01:40]}  Qd7 {[%clk 0:01:25]} 28. Qa2 {[%clk 0:01:28]}  Rc8 {[%clk 0:01:11]} 29. Rb1 {[%clk 0:01:26]}  Qc7 {[%clk 0:01:08]} 30. Qb3 {[%clk 0:01:21]}  Rb8 {[%clk 0:01:06]} 31. Nh4 {[%clk 0:01:19]}  Qd8 {[%clk 0:00:55]} 32. Ng2 {[%clk 0:01:17]}  Qd7 {[%clk 0:00:51]} 33. Ne3 {[%clk 0:01:16]}  Qc6 {[%clk 0:00:41]} 34. Bg3 {[%clk 0:01:14]}  Qd7 {[%clk 0:00:31]} 35. Rbf1 {[%clk 0:01:12]}  b5 {[%clk 0:00:28]} 36. axb5 {[%clk 0:01:11]}  Nxb5 {[%clk 0:00:29]} 37. Rb1 {[%clk 0:01:12]}  Bb4 {[%clk 0:00:24]} 38. cxb4 {[%clk 0:01:05]}  Nxd4 {[%clk 0:00:23]} 39. Qa3 {[%clk 0:01:04]}  hxg4 {[%clk 0:00:18]} 40. bxa5+ {[%clk 0:01:02]}  Kg8 {[%clk 0:00:18]} 41. Rxb8+ {[%clk 0:01:02]} 1-0


[Site "https://www.chess.com"]

[Event "Titled Tuesday Blitz March 01 Early 2022"]
[White "Wong, Yinn Long"]
[Black "Devaev, Alexander"]
[WhiteFideId "5707684"]
[BlackFideId "4169395"]
[WhiteElo "2055"]
[BlackElo "2185"]
[Result "1-0"]
[Round "01"]
[TimeControl "180+1"]
[Date "2022.03.01"]
[WhiteClock "0:00:07"]
[BlackClock "0:00:29"]

1. d4 {[%clk 0:03:00]}  Nf6 {[%clk 0:02:52]} 2. Bf4 {[%clk 0:02:59]}  d5 {[%clk 0:02:47]} 3. e3 {[%clk 0:02:59]}  e6 {[%clk 0:02:47]} 4. Nd2 {[%clk 0:02:59]}  Bd6 {[%clk 0:02:47]} 5. Bg3 {[%clk 0:03:00]}  Qe7 {[%clk 0:02:46]} 6. Ngf3 {[%clk 0:02:59]}  Bxg3 {[%clk 0:02:47]} 7. hxg3 {[%clk 0:02:59]}  Nbd7 {[%clk 0:02:48]} 8. c3 {[%clk 0:02:57]}  e5 {[%clk 0:02:44]} 9. dxe5 {[%clk 0:02:58]}  Nxe5 {[%clk 0:02:44]} 10. Nxe5 {[%clk 0:02:59]}  Qxe5 {[%clk 0:02:45]} 11. Qa4+ {[%clk 0:02:59]}  c6 {[%clk 0:02:40]} 12. Qf4 {[%clk 0:02:58]}  Qe7 {[%clk 0:02:35]} 13. Bd3 {[%clk 0:02:52]}  Be6 {[%clk 0:02:30]} 14. O-O-O {[%clk 0:02:43]}  O-O-O {[%clk 0:02:30]} 15. Nf3 {[%clk 0:02:35]}  h6 {[%clk 0:02:30]} 16. Bf5 {[%clk 0:02:28]}  Qc7 {[%clk 0:02:25]} 17. Nd4 {[%clk 0:02:24]}  Rhe8 {[%clk 0:02:18]} 18. Qf3 {[%clk 0:01:43]}  c5 {[%clk 0:02:03]} 19. Nb3 {[%clk 0:01:32]}  Kb8 {[%clk 0:01:56]} 20. Kb1 {[%clk 0:01:24]}  b6 {[%clk 0:01:55]} 21. g4 {[%clk 0:01:16]}  Qe5 {[%clk 0:01:49]} 22. Nc1 {[%clk 0:01:06]}  Bxf5+ {[%clk 0:01:41]} 23. gxf5 {[%clk 0:01:05]}  Qe4+ {[%clk 0:01:41]} 24. Qxe4 {[%clk 0:00:56]}  dxe4 {[%clk 0:01:38]} 25. Ne2 {[%clk 0:00:47]}  Kc7 {[%clk 0:01:37]} 26. Kc2 {[%clk 0:00:46]}  Re5 {[%clk 0:01:28]} 27. Ng3 {[%clk 0:00:46]}  Red5 {[%clk 0:01:25]} 28. Rxd5 {[%clk 0:00:45]}  Rxd5 {[%clk 0:01:26]} 29. Rh4 {[%clk 0:00:46]}  Re5 {[%clk 0:01:24]} 30. c4 {[%clk 0:00:41]}  Kd6 {[%clk 0:01:22]} 31. Rf4 {[%clk 0:00:41]}  Re7 {[%clk 0:01:20]} 32. Kc3 {[%clk 0:00:41]}  Ke5 {[%clk 0:01:18]} 33. Rh4 {[%clk 0:00:40]}  Rd7 {[%clk 0:01:19]} 34. Kc2 {[%clk 0:00:40]}  a6 {[%clk 0:01:14]} 35. f4+ {[%clk 0:00:37]}  Kd6 {[%clk 0:01:05]} 36. Rh1 {[%clk 0:00:37]}  Kc6 {[%clk 0:01:04]} 37. Re1 {[%clk 0:00:29]}  b5 {[%clk 0:01:01]} 38. b3 {[%clk 0:00:29]}  Rb7 {[%clk 0:00:55]} 39. Nf1 {[%clk 0:00:21]}  Rd7 {[%clk 0:00:48]} 40. Nd2 {[%clk 0:00:20]}  b4 {[%clk 0:00:48]} 41. Rg1 {[%clk 0:00:20]}  Rd3 {[%clk 0:00:44]} 42. Nxe4 {[%clk 0:00:18]}  Rxe3 {[%clk 0:00:45]} 43. Nxf6 {[%clk 0:00:18]}  gxf6 {[%clk 0:00:46]} 44. Kd2 {[%clk 0:00:17]}  Rc3 {[%clk 0:00:41]} 45. Rh1 {[%clk 0:00:16]}  Rg3 {[%clk 0:00:40]} 46. Rxh6 {[%clk 0:00:14]}  Rxg2+ {[%clk 0:00:41]} 47. Kd3 {[%clk 0:00:15]}  Rxa2 {[%clk 0:00:42]} 48. Rxf6+ {[%clk 0:00:15]}  Kd7 {[%clk 0:00:41]} 49. Rxf7+ {[%clk 0:00:16]}  Kd8 {[%clk 0:00:42]} 50. Ra7 {[%clk 0:00:14]}  a5 {[%clk 0:00:42]} 51. f6 {[%clk 0:00:13]}  Ke8 {[%clk 0:00:42]} 52. Ke4 {[%clk 0:00:13]}  a4 {[%clk 0:00:38]} 53. bxa4 {[%clk 0:00:13]}  b3 {[%clk 0:00:38]} 54. Kd5 {[%clk 0:00:13]}  Rf2 {[%clk 0:00:38]} 55. Rb7 {[%clk 0:00:08]}  b2 {[%clk 0:00:35]} 56. f7+ {[%clk 0:00:08]}  Kf8 {[%clk 0:00:35]} 57. Ke5 {[%clk 0:00:08]}  Rd2 {[%clk 0:00:29]} 58. a5 {[%clk 0:00:07]}  Rd7 {[%clk 0:00:25]} 59. Rxb2 {[%clk 0:00:07]}  Kxf7 {[%clk 0:00:26]} 60. Rb5 {[%clk 0:00:07]}  Re7+ {[%clk 0:00:26]} 61. Kd5 {[%clk 0:00:07]}  Rd7+ {[%clk 0:00:26]} 62. Kxc5 {[%clk 0:00:07]}  Re7 {[%clk 0:00:27]} 63. a6 {[%clk 0:00:07]}  Rc7+ {[%clk 0:00:28]} 64. Kb6 {[%clk 0:00:07]}  Rc8 {[%clk 0:00:29]} 65. a7 {[%clk 0:00:07]} 1-0


[Site "https://www.chess.com"]

[Event "Titled Tuesday Blitz March 01 Early 2022"]
[White "Xie, Bryan"]
[Black "Godzwon, Iwo"]
[WhiteFideId "30941296"]
[BlackFideId "21802483"]
[WhiteElo "1899"]
[BlackElo "2201"]
[Result "0-1"]
[Round "01"]
[TimeControl "180+1"]
[Date "2022.03.01"]
[WhiteClock "0:00:01"]
[BlackClock "0:01:42"]

1. d4 {[%clk 0:02:48]}  Nf6 {[%clk 0:02:58]} 2. Nf3 {[%clk 0:02:48]}  e6 {[%clk 0:02:55]} 3. Bf4 {[%clk 0:02:48]}  b6 {[%clk 0:02:48]} 4. e3 {[%clk 0:02:47]}  Bb7 {[%clk 0:02:48]} 5. Nbd2 {[%clk 0:02:47]}  d6 {[%clk 0:02:44]} 6. Bd3 {[%clk 0:02:47]}  Nbd7 {[%clk 0:02:45]} 7. O-O {[%clk 0:02:44]}  g6 {[%clk 0:02:44]} 8. h3 {[%clk 0:02:45]}  Bg7 {[%clk 0:02:43]} 9. e4 {[%clk 0:02:43]}  Qe7 {[%clk 0:02:41]} 10. Re1 {[%clk 0:02:16]}  e5 {[%clk 0:02:38]} 11. dxe5 {[%clk 0:02:11]}  dxe5 {[%clk 0:02:38]} 12. Bh2 {[%clk 0:02:09]}  O-O {[%clk 0:02:38]} 13. Nc4 {[%clk 0:02:03]}  Ne8 {[%clk 0:02:38]} 14. a4 {[%clk 0:01:58]}  a5 {[%clk 0:02:35]} 15. Ne3 {[%clk 0:01:43]}  Nc5 {[%clk 0:02:27]} 16. Nd5 {[%clk 0:01:27]}  Qd6 {[%clk 0:02:27]} 17. Bc4 {[%clk 0:01:09]}  Rd8 {[%clk 0:02:27]} 18. Nc3 {[%clk 0:01:01]}  Qe7 {[%clk 0:02:18]} 19. Qe2 {[%clk 0:00:58]}  Nd6 {[%clk 0:02:17]} 20. Bd5 {[%clk 0:00:51]}  Ba6 {[%clk 0:02:14]} 21. Qe3 {[%clk 0:00:35]}  Kh8 {[%clk 0:02:04]} 22. Rad1 {[%clk 0:00:20]}  f6 {[%clk 0:02:04]} 23. b3 {[%clk 0:00:20]}  Qe8 {[%clk 0:01:57]} 24. Nd2 {[%clk 0:00:13]}  c6 {[%clk 0:01:53]} 25. Bc4 {[%clk 0:00:13]}  Nxc4 {[%clk 0:01:52]} 26. Nxc4 {[%clk 0:00:14]}  Bxc4 {[%clk 0:01:52]} 27. bxc4 {[%clk 0:00:14]}  Qe6 {[%clk 0:01:51]} 28. Rb1 {[%clk 0:00:10]}  Rb8 {[%clk 0:01:49]} 29. Qe2 {[%clk 0:00:07]}  Rfd8 {[%clk 0:01:50]} 30. Red1 {[%clk 0:00:07]}  Rxd1+ {[%clk 0:01:47]} 31. Qxd1 {[%clk 0:00:03]}  Qxc4 {[%clk 0:01:47]} 32. Qd6 {[%clk 0:00:04]}  Rg8 {[%clk 0:01:46]} 33. Nd1 {[%clk 0:00:02]}  Nxe4 {[%clk 0:01:44]} 34. Qe7 {[%clk 0:00:01]}  Qxc2 {[%clk 0:01:42]} 0-1


[Site "https://www.chess.com"]

[Event "Titled Tuesday Blitz March 01 Early 2022"]
[White "Yang, Kaiqi"]
[Black "Winkels, Marcel"]
[WhiteFideId "8604398"]
[BlackFideId "1003887"]
[WhiteElo "2373"]
[BlackElo "1900"]
[Result "1-0"]
[Round "01"]
[TimeControl "180+1"]
[Date "2022.03.01"]
[WhiteClock "0:00:47"]
[BlackClock "0:00:07"]

1. c4 {[%clk 0:03:00]}  e5 {[%clk 0:02:56]} 2. g3 {[%clk 0:02:59]}  d6 {[%clk 0:02:56]} 3. Bg2 {[%clk 0:02:59]}  f5 {[%clk 0:02:56]} 4. Nc3 {[%clk 0:02:57]}  Nf6 {[%clk 0:02:56]} 5. Nf3 {[%clk 0:02:49]}  Be7 {[%clk 0:02:51]} 6. O-O {[%clk 0:02:44]}  O-O {[%clk 0:02:49]} 7. d4 {[%clk 0:02:39]}  Nbd7 {[%clk 0:02:43]} 8. dxe5 {[%clk 0:02:28]}  dxe5 {[%clk 0:02:34]} 9. b3 {[%clk 0:02:12]}  c6 {[%clk 0:02:32]} 10. Bb2 {[%clk 0:02:09]}  Qe8 {[%clk 0:02:20]} 11. Qc2 {[%clk 0:02:03]}  Qh5 {[%clk 0:02:17]} 12. Rad1 {[%clk 0:01:54]}  e4 {[%clk 0:02:00]} 13. Nd4 {[%clk 0:01:52]}  Ne5 {[%clk 0:01:29]} 14. f3 {[%clk 0:01:42]}  exf3 {[%clk 0:01:24]} 15. exf3 {[%clk 0:01:42]}  Bc5 {[%clk 0:00:56]} 16. Ne2 {[%clk 0:01:35]}  Qh6 {[%clk 0:00:26]} 17. Kh1 {[%clk 0:01:19]}  Nfg4 {[%clk 0:00:19]} 18. fxg4 {[%clk 0:01:18]}  Nxg4 {[%clk 0:00:18]} 19. h3 {[%clk 0:01:10]}  Ne3 {[%clk 0:00:17]} 20. Qc1 {[%clk 0:00:53]}  Nxd1 {[%clk 0:00:14]} 21. Qxh6 {[%clk 0:00:49]}  gxh6 {[%clk 0:00:13]} 22. Rxd1 {[%clk 0:00:50]}  f4 {[%clk 0:00:07]} 23. Nxf4 {[%clk 0:00:47]} 1-0


[Site "https://www.chess.com"]

[Event "Titled Tuesday Blitz March 01 Early 2022"]
[White "Yurtseven, Melih"]
[Black "Indjic, Aleksandar"]
[WhiteFideId "6312160"]
[BlackFideId "911925"]
[WhiteElo "2160"]
[BlackElo "2616"]
[Result "0-1"]
[Round "01"]
[TimeControl "180+1"]
[Date "2022.03.01"]
[WhiteClock "0:01:12"]
[BlackClock "0:02:22"]

1. Nf3 {[%clk 0:02:56]}  d5 {[%clk 0:02:58]} 2. g3 {[%clk 0:02:51]}  Nd7 {[%clk 0:02:57]} 3. d4 {[%clk 0:02:50]}  Nb6 {[%clk 0:02:57]} 4. Bg2 {[%clk 0:02:50]}  Nf6 {[%clk 0:02:54]} 5. O-O {[%clk 0:02:50]}  h6 {[%clk 0:02:54]} 6. b3 {[%clk 0:02:48]}  Bf5 {[%clk 0:02:53]} 7. Bb2 {[%clk 0:02:48]}  e6 {[%clk 0:02:53]} 8. Nbd2 {[%clk 0:02:46]}  Be7 {[%clk 0:02:52]} 9. c4 {[%clk 0:02:46]}  c6 {[%clk 0:02:51]} 10. Ne5 {[%clk 0:02:41]}  Bh7 {[%clk 0:02:50]} 11. Re1 {[%clk 0:02:39]}  Nbd7 {[%clk 0:02:46]} 12. Nd3 {[%clk 0:02:37]}  Ne4 {[%clk 0:02:44]} 13. Nxe4 {[%clk 0:02:07]}  dxe4 {[%clk 0:02:42]} 14. Nf4 {[%clk 0:02:05]}  O-O {[%clk 0:02:37]} 15. Qd2 {[%clk 0:02:03]}  Qb6 {[%clk 0:02:33]} 16. Qe3 {[%clk 0:01:57]}  Nf6 {[%clk 0:02:32]} 17. h3 {[%clk 0:01:56]}  g5 {[%clk 0:02:30]} 18. Nxe6 {[%clk 0:01:14]}  fxe6 {[%clk 0:02:28]} 19. h4 {[%clk 0:01:14]}  Ng4 {[%clk 0:02:25]} 20. Qc3 {[%clk 0:01:15]}  Bb4 {[%clk 0:02:24]} 21. Qc2 {[%clk 0:01:12]}  e3 {[%clk 0:02:22]} 0-1


[Site "https://www.chess.com"]

[Event "Titled Tuesday Blitz March 01 Early 2022"]
[White "Zaksaite, Salomeja"]
[Black "Ambartsumova, Karina"]
[WhiteFideId "12801496"]
[BlackFideId "4166299"]
[WhiteElo "2002"]
[BlackElo "2262"]
[Result "0-1"]
[Round "01"]
[TimeControl "180+1"]
[Date "2022.03.01"]
[WhiteClock "0:00:02"]
[BlackClock "0:00:35"]

1. e4 {[%clk 0:03:00]}  e5 {[%clk 0:02:52]} 2. Nf3 {[%clk 0:03:00]}  Nc6 {[%clk 0:02:51]} 3. Bc4 {[%clk 0:02:57]}  Nf6 {[%clk 0:02:49]} 4. d4 {[%clk 0:02:53]}  exd4 {[%clk 0:02:39]} 5. e5 {[%clk 0:02:53]}  d5 {[%clk 0:02:39]} 6. Bb5 {[%clk 0:02:52]}  Ne4 {[%clk 0:02:38]} 7. Nxd4 {[%clk 0:02:51]}  Bd7 {[%clk 0:02:39]} 8. Bxc6 {[%clk 0:02:47]}  bxc6 {[%clk 0:02:38]} 9. O-O {[%clk 0:02:47]}  Be7 {[%clk 0:02:25]} 10. f3 {[%clk 0:02:46]}  Nc5 {[%clk 0:02:24]} 11. f4 {[%clk 0:02:44]}  f5 {[%clk 0:01:59]} 12. exf6 {[%clk 0:02:30]}  Bxf6 {[%clk 0:01:56]} 13. Re1+ {[%clk 0:02:28]}  Ne4 {[%clk 0:01:54]} 14. Nc3 {[%clk 0:02:19]}  O-O {[%clk 0:01:54]} 15. Nxe4 {[%clk 0:02:18]}  dxe4 {[%clk 0:01:54]} 16. Be3 {[%clk 0:02:00]}  c5 {[%clk 0:01:49]} 17. Nb3 {[%clk 0:01:58]}  Bxb2 {[%clk 0:01:47]} 18. Qd5+ {[%clk 0:01:49]}  Kh8 {[%clk 0:01:47]} 19. Rad1 {[%clk 0:01:44]}  Bg4 {[%clk 0:01:39]} 20. Qxd8 {[%clk 0:01:02]}  Raxd8 {[%clk 0:01:40]} 21. Rxd8 {[%clk 0:01:02]}  Rxd8 {[%clk 0:01:40]} 22. Bxc5 {[%clk 0:01:00]}  Bf5 {[%clk 0:01:22]} 23. h3 {[%clk 0:00:56]}  h5 {[%clk 0:01:21]} 24. Bxa7 {[%clk 0:00:56]}  Ra8 {[%clk 0:01:20]} 25. Bd4 {[%clk 0:00:55]}  Rxa2 {[%clk 0:01:18]} 26. Bxb2 {[%clk 0:00:39]}  Rxb2 {[%clk 0:01:19]} 27. Nd4 {[%clk 0:00:30]}  Bh7 {[%clk 0:01:11]} 28. Re2 {[%clk 0:00:10]}  c5 {[%clk 0:01:09]} 29. Ne6 {[%clk 0:00:10]}  c4 {[%clk 0:01:03]} 30. Kf2 {[%clk 0:00:10]}  e3+ {[%clk 0:00:55]} 31. Kxe3 {[%clk 0:00:10]}  Rxc2 {[%clk 0:00:48]} 32. Rxc2 {[%clk 0:00:08]}  Bxc2 {[%clk 0:00:49]} 33. Kd4 {[%clk 0:00:08]}  Bd3 {[%clk 0:00:46]} 34. Nc5 {[%clk 0:00:05]}  Bf1 {[%clk 0:00:45]} 35. Ne4 {[%clk 0:00:03]}  Bxg2 {[%clk 0:00:44]} 36. Ng5 {[%clk 0:00:03]}  Bf1 {[%clk 0:00:41]} 37. h4 {[%clk 0:00:03]}  g6 {[%clk 0:00:37]} 38. Nf7+ {[%clk 0:00:02]}  Kg7 {[%clk 0:00:37]} 39. Ne5 {[%clk 0:00:03]}  Kf6 {[%clk 0:00:37]} 40. Kc3 {[%clk 0:00:02]}  Kf5 {[%clk 0:00:36]} 41. Kd4 {[%clk 0:00:02]}  Bd3 {[%clk 0:00:35]} 42. Kc3 {[%clk 0:00:02]}  Kxf4 {[%clk 0:00:34]} 43. Nxd3+ {[%clk 0:00:01]}  cxd3 {[%clk 0:00:35]} 44. Kxd3 {[%clk 0:00:02]}  Kg4 {[%clk 0:00:35]} 0-1


[Site "https://www.chess.com"]

[Event "Titled Tuesday Blitz March 01 Early 2022"]
[White "Zavivaeva, Emilia"]
[Black "Karttunen, Mika"]
[WhiteFideId "34127531"]
[BlackFideId "502081"]
[WhiteElo "1685"]
[BlackElo "2343"]
[Result "0-1"]
[Round "01"]
[TimeControl "180+1"]
[Date "2022.03.01"]
[WhiteClock "0:00:03"]
[BlackClock "0:00:09"]

1. e4 {[%clk 0:02:56]}  c5 {[%clk 0:02:59]} 2. Nf3 {[%clk 0:02:51]}  Nc6 {[%clk 0:02:58]} 3. d4 {[%clk 0:02:46]}  cxd4 {[%clk 0:02:58]} 4. Nxd4 {[%clk 0:02:45]}  Nf6 {[%clk 0:02:57]} 5. Nc3 {[%clk 0:02:44]}  e5 {[%clk 0:02:57]} 6. Ndb5 {[%clk 0:02:42]}  d6 {[%clk 0:02:58]} 7. Bg5 {[%clk 0:02:41]}  a6 {[%clk 0:02:57]} 8. Na3 {[%clk 0:02:40]}  b5 {[%clk 0:02:57]} 9. Bxf6 {[%clk 0:02:36]}  gxf6 {[%clk 0:02:53]} 10. Nd5 {[%clk 0:02:36]}  Bg7 {[%clk 0:02:36]} 11. g3 {[%clk 0:02:34]}  f5 {[%clk 0:02:22]} 12. Bg2 {[%clk 0:02:33]}  O-O {[%clk 0:02:05]} 13. O-O {[%clk 0:02:28]}  fxe4 {[%clk 0:01:56]} 14. Bxe4 {[%clk 0:02:26]}  f5 {[%clk 0:01:52]} 15. Bg2 {[%clk 0:02:24]}  e4 {[%clk 0:01:47]} 16. c3 {[%clk 0:02:20]}  Ne5 {[%clk 0:01:08]} 17. Nc2 {[%clk 0:02:13]}  Nd3 {[%clk 0:01:05]} 18. Rb1 {[%clk 0:01:59]}  Be6 {[%clk 0:01:03]} 19. Ndb4 {[%clk 0:01:57]}  Bc4 {[%clk 0:00:45]} 20. b3 {[%clk 0:01:48]}  Nxb4 {[%clk 0:00:44]} 21. Nxb4 {[%clk 0:01:45]}  Bxf1 {[%clk 0:00:42]} 22. Bxf1 {[%clk 0:01:42]}  Bxc3 {[%clk 0:00:40]} 23. Nd5 {[%clk 0:01:38]}  Be5 {[%clk 0:00:38]} 24. Qh5 {[%clk 0:01:33]}  Rc8 {[%clk 0:00:36]} 25. Rd1 {[%clk 0:01:28]}  Rc2 {[%clk 0:00:35]} 26. a4 {[%clk 0:01:27]}  bxa4 {[%clk 0:00:34]} 27. bxa4 {[%clk 0:01:26]}  a5 {[%clk 0:00:34]} 28. Ne3 {[%clk 0:01:16]}  Rc5 {[%clk 0:00:14]} 29. Nxf5 {[%clk 0:01:05]}  Kh8 {[%clk 0:00:14]} 30. Ne3 {[%clk 0:00:41]}  Qf6 {[%clk 0:00:14]} 31. Ng4 {[%clk 0:00:36]}  Qf3 {[%clk 0:00:14]} 32. Rb1 {[%clk 0:00:13]}  Bd4 {[%clk 0:00:12]} 33. Qh3 {[%clk 0:00:03]}  Bxf2+ {[%clk 0:00:11]} 34. Nxf2 {[%clk 0:00:03]}  Qxf2+ {[%clk 0:00:12]} 35. Kh1 {[%clk 0:00:02]}  e3 {[%clk 0:00:08]} 36. Rb7 {[%clk 0:00:02]}  Qxf1+ {[%clk 0:00:08]} 37. Qxf1 {[%clk 0:00:01]}  Rxf1+ {[%clk 0:00:09]} 38. Kg2 {[%clk 0:00:02]}  Rf2+ {[%clk 0:00:10]} 39. Kh3 {[%clk 0:00:02]}  e2 {[%clk 0:00:10]} 40. Rb8+ {[%clk 0:00:03]}  Kg7 {[%clk 0:00:10]} 41. Rb7+ {[%clk 0:00:04]}  Rf7 {[%clk 0:00:10]} 42. Rb1 {[%clk 0:00:03]}  Rf1 {[%clk 0:00:10]} 43. Rb2 {[%clk 0:00:03]}  e1=Q {[%clk 0:00:09]} 0-1


[Site "https://www.chess.com"]